Cogmind - Beta 13 @@@ ROGUE MODE // 2024.05.25 @ 19:43:09 Player: Minty Result: Destroyed by Y-54 Guardian with Gatling Laser Performance ------------- Evolutions (3) 1500 Regions Visited (6) 1200 Robots Destroyed (80) 400 Value Destroyed (2064) 2064 Prototype IDs (24) 480 Alien Tech Used (0) 0 Bonus (529) 529 TOTAL SCORE: 6173 Bonus ------- High Alert Combat Kills 144 Follower Combat Kills 85 Aligned with FarCom 300 Cogmind --------- Core Integrity 0/700 Matter 284/300 Energy 100/100 System Corruption 9% Temperature Cool (18) Movement Rolling (95) Ox1 Location -7/Factory Parts ------- > --- POWER (1) -------- (None) > --- PROPULSION (3) --- Light Treads Wheel > --- UTILITY (6) ------ Medium Storage Unit > --- WEAPON (3) ------- Powered Hammer > --- INVENTORY (10) --- Improved Ion Engine Advanced Heat Sink Small Storage Unit High-capacity Storage Unit Trap Reconfigurator Minigun Rocket Launcher Improved Datajack Flail Peak State ------------ > --- POWER ------------ Improved Ion Engine > --- PROPULSION ------- Light Treads Armored Treads > --- UTILITY ---------- Advanced Heat Sink High-capacity Storage Unit Improved Melee Analysis Suite Hacking Suite System Shield Trap Reconfigurator > --- WEAPON ----------- Advanced Beam Cannon EMP Blaster Powered Hammer > --- INVENTORY -------- Improved Ion Engine Carbon-fiber Leg Small Storage Unit Medium Storage Unit Hardened Medium Armor Plating Minigun Rocket Launcher Improved Datajack Flail Makeshift Sword Proton Bomb Trap [Rating: 42] Favorites ----------- Power Light Ion Engine Engine Light Ion Engine Power Core Light Nuclear Core Propulsion Light Treads Treads Light Treads Leg Aluminum Leg Wheel Wheel Hover Unit Hover Unit Utility Small Storage Unit Device Advanced Heat Sink Storage Small Storage Unit Processor Improved Melee Analysis Suite Hackware Hacking Suite Protection Hardened Medium Armor Plating Weapon Assault Rifle Energy Gun Beam Rifle Energy Cannon Advanced Beam Cannon Ballistic Gun Assault Rifle Launcher EMP Blaster Impact Weapon Flail Slashing Weapon Makeshift Sword Special Melee Weapon Datajack Build | -11 -10 -10 -10 -9 -8 -7 ------- Run | Yrd Mat Min Exi Min Mat Fac Slots Evolved 6 | . . . . . 4 2 Power . | . . . . . . . Propulsion 1 | . . . . . 1 . Utility 4 | . . . . . 2 2 Weapon 1 | . . . . . 1 . Parts Attached 71 | . 11 2 . 5 34 19 Power 5 | . 1 . . . 3 1 Engine 4 | . 1 . . . 2 1 Core 1 | . . . . . 1 . Reactor . | . . . . . . . Propulsion 18 | . 3 1 . 1 9 4 Treads 9 | . . . . . 7 2 Leg 2 | . . . . . 1 1 Wheel 5 | . 3 1 . . . 1 Hover 2 | . . . . 1 1 . Flight . | . . . . . . . Utility 24 | . 3 1 . . 12 8 Device 7 | . 1 . . . 4 2 Storage 5 | . 1 . . . 1 3 Processor 5 | . 1 1 . . 3 . Hackware 3 | . . . . . 2 1 Protection 4 | . . . . . 2 2 Artifact . | . . . . . . . Weapon 24 | . 4 . . 4 10 6 Energy Gun 3 | . 1 . . 1 1 . Energy Cannon 1 | . . . . . 1 . Ballistic Gun 6 | . 1 . . . 4 1 Ballistic Cannon . | . . . . . . . Launcher 7 | . 2 . . 3 1 1 Special Weapon . | . . . . . . . Impact Weapon 4 | . . . . . 1 3 Slashing Weapon 2 | . . . . . 1 1 Piercing Weapon . | . . . . . . . Special Melee Weapon 1 | . . . . . 1 . Unidentified Prototypes 1 | . . . . . 1 . Corrupted Parts 3 | . 2 . . . . 1 System Corruption 8 | . 6 . . . . 2 Parts Lost 22 | . . 1 . 1 6 14 Power 3 | . . . . . 2 1 Propulsion 8 | . . 1 . 1 2 4 Utility 6 | . . . . . 1 5 Weapon 5 | . . . . . 1 4 Highest Loss Streak 6 | . . 1 . 1 5 6 To Critical Strikes . | . . . . . . . Average Slot Usage (%) 85 | . 91 99 71 85 92 64 Engine 9 | . 14 14 14 14 6 5 Treads 7 | . . . . . 16 11 Leg 5 | . 26 . . . 2 . Wheel 7 | . 1 27 28 14 1 . Hover 2 | . . . . 8 2 . Device 1 | . 5 . . . . 3 Storage 11 | . 14 14 14 14 9 7 Processor 8 | . . 14 14 14 9 4 Hackware 4 | . . . . . 9 6 Protection 2 | . . . . . 6 4 Energy Gun 5 | . 10 . . 10 7 . Energy Cannon 1 | . . . . . 1 4 Ballistic Gun 8 | . 13 14 . . 12 2 Launcher 4 | . 3 14 . 9 1 2 Impact Weapon 1 | . . . . . 2 5 Naked Turns . | . . . . . . . Heaviest Build 67 | 13 16 14 8 15 29 67 Greatest Support 60 | 20 20 26 26 26 60 60 Greatest Overweight (x) 6 | . 1 . . 1 3 6 Average Overweight (x) . | . . . . . . 1 Largest Inventory Capacity 20 | . 8 8 8 8 8 20 Average Capacity 9 | . 8 8 8 8 8 14 Most Carried 11 | . 8 8 8 8 8 11 Average Carried 7 | . 7 7 7 7 7 9 Final Capacity 10 | 8 8 8 8 8 8 10 Final Carried 9 | 6 8 6 8 8 8 9 Class Distribution -------------------- 56% | Mutant 18% | Scavenger-Skirmisher 15% | Scavenger-Mutant 8% | Hacker-Mutant Dominant Class ---------------- Mutant | -10/Materials Mutant | -10/Mines Mutant | -10/Exiles Mutant | -9/Mines Scavenger-Skirmisher | -8/Materials Hacker-Mutant | -7/Factory Resources | -11 -10 -10 -10 -9 -8 -7 ----------- Run | Yrd Mat Min Exi Min Mat Fac Matter Collected 1427 | 200 164 137 . 32 679 215 Remotely . | . . . . . . . Salvage Created 2719 | . 556 238 . 37 840 1048 Parts 158 | . 27 14 . 8 61 48 Haulers Intercepted 2 | . . . . . 2 . Recyclers Shooed 5 | . 1 2 . . . 2 Parts Field Recycled . | . . . . . . . Retrieved Matter . | . . . . . . . Parts Self-Destructed . | . . . . . . . Prevented . | . . . . . . . Kills | -11 -10 -10 -10 -9 -8 -7 ------- Run | Yrd Mat Min Exi Min Mat Fac Combat Hostiles Destroyed 54 | . 9 6 . 4 17 18 Melee 4 | . . . . . 3 1 Guns 21 | . 7 1 . 1 12 . Cannons 5 | . . . . . . 5 AOE 20 | . 2 5 . 3 2 8 Classes Destroyed 14 | . 8 . . . 4 2 Worker 5 | . 1 . . . 1 3 Builder 7 | . 1 1 . 1 1 3 Tunneler 1 | . 1 . . . . . Hauler 2 | . . . . . 2 . Recycler 4 | . 1 . . . 2 1 Mechanic 1 | . . . . . . 1 Operator 4 | . 2 . . . 1 1 Watcher 2 | . 1 . . . 1 . Swarmer 23 | . 3 3 . 4 8 5 Grunt 18 | . 6 3 . . 2 7 Brawler 1 | . . . . . . 1 Duelist 3 | . . . . . 1 2 Sentry 5 | . . . . . 4 1 Hunter 4 | . . . . . 2 2 Best Kill Streak 7 | . 3 4 . 4 6 7 Combat Bots Only 6 | . 3 3 . 4 5 6 Max Kills in Single Turn 5 | . 2 2 . 3 3 5 Gunslinging . | . . . . . . . Exploded 3 | . 1 2 . 3 2 3 Melee 1 | . . . . . 1 1 Uniques/NPCs Destroyed . | . . . . . . . Combat | -11 -10 -10 -10 -9 -8 -7 -------- Run | Yrd Mat Min Exi Min Mat Fac Hostile Shots Fired 406 | . 27 21 . 4 115 239 Missed 129 | . 8 7 . 1 35 78 Damage Taken 3977 | . 326 232 . 37 1053 2329 Core 1050 | . 66 42 . . 238 704 Absorbed by Shields . | . . . . . . . Core Remaining (%) 70 | 100 . . . 56 56 . Volleys Fired 136 | . 37 22 . 3 37 37 Largest 3 | . 2 2 . 1 3 2 Hottest 114 | . 60 53 . 45 114 101 Shots Fired 268 | . 74 31 . 4 103 56 Gun 201 | . 69 21 . 3 101 7 Cannon 33 | . . . . . . 33 Launcher 34 | . 5 10 . 1 2 16 Special . | . . . . . . . Kinetic 131 | . 37 21 . . 66 7 Thermal 81 | . 15 . . . 33 33 Explosive 3 | . . . . 1 2 . Electromagnetic 53 | . 22 10 . 3 2 16 Robot Hit Streak 17 | . 12 4 . 4 17 9 Robot Miss Streak 7 | . 7 5 . 1 7 4 Penetration Max . | . . . . . . . Secondary Targets 2 | . . . . . 2 . Max Gunslinging Chain 1 | . . . . . 1 . Shots Hit Robots 198 | . 46 17 . 3 77 55 Core Hits 109 | . 21 12 . 5 34 37 Critical Kills 1 | . . . . . . 1 Critical Parts Destroyed 2 | . . . . . . 2 Critical Strikes 6 | . 1 . . . 2 3 Burn 1 | . . . . . 1 . Meltdown 1 | . . . . . . 1 Corrupt 1 | . 1 . . . . . Smash 2 | . . . . . . 2 Sever 1 | . . . . . 1 . Melee Attacks 47 | . . . . . 17 30 Impact 30 | . . . . . 3 27 Slashing 16 | . . . . . 13 3 Piercing . | . . . . . . . Sneak Attacks 10 | . . . . . 4 6 Combat Hostiles . | . . . . . . . Follow-up Attacks . | . . . . . . . Damage Inflicted 6003 | . 793 461 . 223 1728 2798 Guns 1825 | . 576 134 . 26 1039 50 Cannons 449 | . . . . . . 449 Explosions 2078 | . 217 327 . 197 153 1184 Melee 1623 | . . . . . 508 1115 Ramming 28 | . . . . . 28 . Kinetic 1056 | . 263 134 . . 609 50 Thermal 1606 | . 198 36 . . 407 965 Explosive 350 | . . . . 197 153 . Electromagnetic 1340 | . 332 291 . 26 23 668 Impact 1306 | . . . . . 225 1081 Slashing 317 | . . . . . 283 34 Piercing . | . . . . . . . Highest Corruption 9 | . 6 7 7 7 . 9 Average Corruption 6 | . 5 6 7 7 . 5 Corruption Purged . | . . . . . . . Corruption Blocked . | . . . . . . . Effects 44 | . 1 11 9 15 . 8 Message Errors 13 | . . 2 2 6 . 3 Matter Fused 8 | . . 3 1 2 . 2 Heat Flow Errors 4 | . . . 2 2 . . Energy Discharges 5 | . . 2 . 2 . 1 Parts Fused 1 | . . . 1 . . . Data Loss (minor) 7 | . 1 3 2 1 . . Data Loss (major) 2 | . . . 1 1 . . Misfires 2 | . . . . 1 . 1 Alerts 1 | . . . . . . 1 Weapon Failures 1 | . . 1 . . . . Overload Shots . | . . . . . . . Overflow Damage 492 | . 5 . . 7 113 367 Projectiles 5 | . . . . . . 5 Explosions 40 | . 5 . . 7 15 13 Melee 447 | . . . . . 98 349 Knockbacks 7 | . . . . . 1 6 Impact 7 | . . . . . 1 6 Kinetic . | . . . . . . . Secondary . | . . . . . . . Self-Inflicted Damage 380 | . 68 49 . . . 263 Shots 21 | . 3 3 . . . 15 Rammed 4 | . . . . . 4 . Targets Rammed 4 | . . . . . 4 . Kicked . | . . . . . . . Crushed . | . . . . . . . Highest Temperature 252 | . 45 30 224 151 252 203 Average Temperature 82 | . 22 15 100 61 99 90 Received Heat Transfer 798 | . 96 126 . 18 207 351 Effects 3 | . . . . . 3 . Interference 3 | . . . . . 3 . Siege Activations . | . . . . . . . Robots Corrupted 1 | . . . . . . 1 Combat Hostiles 1 | . . . . . . 1 Parts Fried 11 | . 1 . . . 1 9 Impact Corruptions 12 | . . . . . 3 9 Robots Melted 1 | . . . . . . 1 Combat Hostiles 1 | . . . . . . 1 Parts Melted 3 | . . . . . 1 2 Heat Transferred 2874 | . 400 100 . . 1110 1264 Parts Sabotaged . | . . . . . . . Parts Stolen . | . . . . . . . Parts Stripped . | . . . . . . . Power Chain Reactions 12 | . 3 1 . . . 8 Alert | -11 -10 -10 -10 -9 -8 -7 ------- Run | Yrd Mat Min Exi Min Mat Fac Peak Influence 623 | . 238 201 . 216 568 623 Initial 200 | . . 24 . . 85 200 Average 227 | . 87 131 . 96 268 422 Maximum Alert Level 2 | . 1 1 . 1 2 2 Low Security (%) 55 | . 93 78 . 92 46 . Level 1 17 | . 6 21 . 7 13 39 Level 2 27 | . . . . . 39 60 Level 3 . | . . . . . . . Level 4 . | . . . . . . . Level 5 . | . . . . . . . High Security . | . . . . . . . Max Security . | . . . . . . . Squads Dispatched 12 | . 2 . . . 3 7 Investigation 2 | . . . . . 2 . Extermination 1 | . . . . . . 1 Reinforcement 6 | . 2 . . . 1 3 Assault . | . . . . . . . Garrison 3 | . . . . . . 3 Intercept . | . . . . . . . Searches Triggered . | . . . . . . . Construction Impeded 2 | . . . . . . 2 Haulers Reinforced . | . . . . . . . Active Scanning Responses . | . . . . . . . Cargo Convoy Interrupts . | . . . . . . . Stealth | -11 -10 -10 -10 -9 -8 -7 --------- Run | Yrd Mat Min Exi Min Mat Fac Distress Signals 6 | . 2 . . . 3 1 Communications Jammed . | . . . . . . . Distress Signals . | . . . . . . . Times Spotted 73 | . 14 7 . 3 28 21 Peak Tracking Total 6 | . 3 2 . 2 6 5 Tactical Retreats 6 | . 2 . . . 3 1 Traps | -11 -10 -10 -10 -9 -8 -7 ------- Run | Yrd Mat Min Exi Min Mat Fac Traps Triggered 2 | . 1 . . . . 1 Indirectly 1 | . . . . . . 1 Trap Hack Attempts . | . . . . . . . Triggered . | . . . . . . . Disarmed . | . . . . . . . Reprogrammed . | . . . . . . . Reused 4 | . . . . . 3 1 Traps Reconfigurated 6 | . . . . . 5 1 Traps Extracted . | . . . . . . . Installed 4 | . . . . . 3 1 Triggered 4 | . . . . . 3 1 Most Traps Carried 4 | . . . . 4 4 1 Machines | -11 -10 -10 -10 -9 -8 -7 ---------- Run | Yrd Mat Min Exi Min Mat Fac Machines Disabled 10 | . 3 . . 1 2 4 Max in Single Turn 2 | . 2 . . 1 1 2 Machines Repaired . | . . . . . . . Machines Dismantled . | . . . . . . . Machines Sabotaged . | . . . . . . . Overloaded Fab Kills . | . . . . . . . Hacking | -11 -10 -10 -10 -9 -8 -7 --------- Run | Yrd Mat Min Exi Min Mat Fac Machines Accessed 11 | . 4 . 2 . 5 . Terminals 5 | . 3 . . . 2 . Fabricators . | . . . . . . . Repair Stations 1 | . . . . . 1 . Recycling Units 3 | . 1 . . . 2 . Scanalyzers . | . . . . . . . Garrison Access . | . . . . . . . Total Hacks 30 | . 17 . 2 . 11 . Successful 14 | . 7 . 2 . 5 . Failed 16 | . 10 . . . 6 . Catastrophic 1 | . . . . . 1 . Database Lockouts . | . . . . . . . Manual 3 | . 1 . 1 . 1 . Terminals 18 | . 13 . . . 5 . Fabricators . | . . . . . . . Repair Stations 2 | . . . . . 2 . Recycling Units 8 | . 4 . . . 4 . Scanalyzers . | . . . . . . . Garrison Access . | . . . . . . . Terminal Hacks 7 | . 4 . 2 . 1 . Record 1 | . . . 1 . . . Terminal Index 1 | . 1 . . . . . Alert Level 1 | . 1 . . . . . Unreport Threat 1 | . 1 . . . . . Locate Traps 1 | . . . . . 1 . Surveillance Status 1 | . 1 . . . . . Derelict Proto ID Bank 1 | . . . 1 . . . Fabricator Hacks . | . . . . . . . Repair Station Hacks . | . . . . . . . Recycling Unit Hacks 5 | . 2 . . . 3 . Report Inventory 3 | . 1 . . . 2 . Retrieve Components 2 | . 1 . . . 1 . Scanalyzer . | . . . . . . . Garrison Access Hacks . | . . . . . . . Unauthorized Hacks 2 | . 1 . . . 1 . Terminals 1 | . 1 . . . . . Operators 1 | . 1 . . . . . Fabricators . | . . . . . . . Repair Stations . | . . . . . . . Recycling Units 1 | . . . . . 1 . Tunnel 1 | . . . . . 1 . Scanalyzers . | . . . . . . . Garrison Access . | . . . . . . . Data Cores Recovered . | . . . . . . . Used . | . . . . . . . Hacking Detections 7 | . 4 . . . 3 . Full Trace Events 2 | . 1 . . . 1 . Feedback Events . | . . . . . . . Feedback Blocked . | . . . . . . . Robot Schematics Acquired . | . . . . . . . Robots Built . | . . . . . . . Authchips . | . . . . . . . Time . | . . . . . . . Total Robot Build Rating . | . . . . . . . Part Schematics Acquired . | . . . . . . . Parts Built . | . . . . . . . Authchips . | . . . . . . . Time . | . . . . . . . Total Part Build Rating . | . . . . . . . Parts Repaired . | . . . . . . . Time . | . . . . . . . Parts Recycled . | . . . . . . . Recycled Matter . | . . . . . . . Retrieved Matter . | . . . . . . . Retrieved Components 19 | . 9 . . . 10 . Parts Scanalyzed . | . . . . . . . Part Schematics Acquired . | . . . . . . . Parts Damaged . | . . . . . . . Bothacking | -11 -10 -10 -10 -9 -8 -7 ------------ Run | Yrd Mat Min Exi Min Mat Fac Used RIF Installer . | . . . . . . . Robots Hacked 1 | . . . . . 1 . Non-combat 1 | . . . . . 1 . Combat . | . . . . . . . Robot Hacks Applied 1 | . . . . . 1 . no_distress 1 | . . . . . 1 . Relay Couplers Released . | . . . . . . . Fabnet Peak Effective % . | . . . . . . . Robots Rewired . | . . . . . . . Allies Hacked . | . . . . . . . Hacks Repelled . | . . . . . . . Allies | -11 -10 -10 -10 -9 -8 -7 -------- Run | Yrd Mat Min Exi Min Mat Fac Total Allies 5 | . . 5 . . . . Largest Group 4 | . . 4 4 2 1 . Highest-Rated Group 74 | . . 74 74 32 16 . Highest-Rated Ally 31 | . . 31 31 16 16 . Total Orders . | . . . . . . . Ally Attacks 46 | . . 9 . 35 2 . Total Damage 500 | . . 108 . 365 27 . Kills 5 | . . 1 . 4 . . Allies Corrupted . | . . . . . . . Allies Melted . | . . . . . . . Intel | -11 -10 -10 -10 -9 -8 -7 ------- Run | Yrd Mat Min Exi Min Mat Fac Robot Analysis Total . | . . . . . . . Derelict Logs Recovered . | . . . . . . . Drone Launches . | . . . . . . . Drone Recoveries . | . . . . . . . Exploration | -11 -10 -10 -10 -9 -8 -7 ------------- Run | Yrd Mat Min Exi Min Mat Fac Turns Passed 3011 | . 487 280 265 388 1056 535 Spaces Moved 1797 | 1 297 249 222 387 514 127 Core 14 | . . . . . 1 13 Treads 356 | . . . . . 252 104 Legs 406 | 1 269 . . . 133 3 Wheels 1000 | . 28 249 222 387 107 7 Hover 21 | . . . . . 21 . Flight . | . . . . . . . Fastest Speed 80 | 120 80 80 90 80 95 95 Average Speed 121 | 120 116 82 90 89 153 229 Slowest Speed 410 | 120 120 90 90 95 200 410 Overloaded Moves . | . . . . . . . Propulsion Burnouts . | . . . . . . . Robots Hopped . | . . . . . . . Cave-ins Triggered . | . . . . . . . Exploration Rate (%) 37 | 2 39 55 61 65 33 5 Regions Visited 6 Branch Regions 3 Pre-discovered Areas 2 | . . . 1 . 1 . Known Exits Taken 1 | . 1 . . . . . Unknown Exits Taken 5 | 1 . 1 1 1 1 . Scrap Searched 1 | . . . . 1 . . Spaces Dug . | . . . . . . . Terrain Destroyed 55 | . 10 1 . 10 17 17 Melee . | . . . . . . . Projectile . | . . . . . . . AOE 55 | . 10 1 . 10 17 17 Terrain Rammed . | . . . . . . . Walls Destroyed . | . . . . . . . Machines Disabled . | . . . . . . . Actions | -11 -10 -10 -10 -9 -8 -7 --------- Run | Yrd Mat Min Exi Min Mat Fac Total 2315 | . 365 291 288 424 685 262 Wait 195 | . 1 19 63 21 49 42 Move 1791 | . 296 248 221 386 513 127 Hop . | . . . . . . . Pick Up 19 | . 9 . 1 5 4 . Fast Attach 41 | . 7 . . 2 23 9 Attach 10 | . 1 1 . 2 2 4 Detach 14 | . . . 2 . 7 5 Swap 20 | . 3 1 . 1 9 6 Drop 34 | . 11 . 1 4 17 1 Fire 136 | . 37 22 . 3 37 37 Melee 47 | . . . . . 17 30 Ram . | . . . . . . . Kick . | . . . . . . . Crush 4 | . . . . . 4 . Escape Stasis . | . . . . . . . Rewire . | . . . . . . . Trap 4 | . . . . . 3 1 Miscellaneous . | . . . . . . . Route ------- -11/Scrapyard -10/Materials (discovered 3 exits: [*Mat x2] / *Min) -10/Mines (discovered 2 exits: [*Mat] / *Exi) -10/Exiles -9/Mines -8/Materials -7/Factory History --------- Turn | Location | Event 1 | -11/Scrapyard | Discovered new exit (range 0) 1 | -11/Scrapyard | Entered Materials 222 | -10/Materials | Discovered new exit (range 12) 231 | -10/Materials | Discovered new exit (range 13) 307 | -10/Materials | Build established: Mutant 314 | -10/Materials | Discovered new exit (range 14) 487 | -10/Materials | Identified exit to Mines 488 | -10/Materials | Entered Mines 512 | -10/Mines | Assisted by bots powering up and referring to "LRC-V3" 531 | -10/Mines | Discovered new exit (range 15) 547 | -10/Mines | Met a Derelict bent on vengeance 753 | -10/Mines | Deemed a non-threat by the Exiles lab entrance 754 | -10/Mines | Discovered new exit (range 5) 768 | -10/Mines | Entered Exiles 768 | -10/Exiles | Accompanied by 4 allies 798 | -10/Exiles | Led the pair of lost Derelicts to a safe place 813 | -10/Exiles | Met 8R-AWN 825 | -10/Exiles | Met EX-HEX 858 | -10/Exiles | Met EX-BIN 869 | -10/Exiles | Aligned with FarCom system 870 | -10/Exiles | Given EX-Vault access code 891 | -10/Exiles | Opened EX-Vault 900 | -10/Exiles | Found Trap Reconfigurator 921 | -10/Exiles | Warned to stay clear of 0b10 Research branches 947 | -10/Exiles | Met EX-DEC 952 | -10/Exiles | Learned location of Zion (-7) 980 | -10/Exiles | Discovered new exit (range 10) 1033 | -10/Exiles | Left Exiles lab with Trap Reconfigurator 1033 | -10/Exiles | Entered Mines 1033 | -9/Mines | Accompanied by 2 allies 1136 | -9/Mines | Received a Rocket Launcher from a helpful Derelict 1175 | -9/Mines | Found a hidden stash of uninstalled traps 1377 | -9/Mines | A weapon hastily lodged in a ceiling crevice suddenly fell to the ground 1395 | -9/Mines | Discovered new exit (range 8) 1421 | -9/Mines | Entered Materials 1421 | -8/Materials | Accompanied by 1 ally 1421 | -8/Materials | Evolved 4 slots: Propulsion x1, Utility x2, Weapon x1 1630 | -8/Materials | Lost 5 parts (1p2n1u1w) 1757 | -8/Materials | Discovered new exit (range 8) 1932 | -8/Materials | Build established: Scavenger-Skirmisher 2466 | -8/Materials | Build established: Scavenger-Mutant 2477 | -8/Materials | Entered Factory 2477 | -7/Factory | Evolved 2 slots: Utility x2 2735 | -7/Factory | Garrison activated, responded to threat 2785 | -7/Factory | Lost 3 parts (1p1n1u) 2837 | -7/Factory | Core integrity fell below 50% 2863 | -7/Factory | Lost 6 parts (1n3u2w) 2927 | -7/Factory | Core integrity fell below 20% 3012 | -7/Factory | Destroyed by Y-54 Guardian with Gatling Laser Last Messages --------------- 02967_ Slug penetrates U-05 Engineer. 02967_ U-05 Engineer suffers critical hit (Destroy). 02967_ U-05 Engineer destroyed. 02969_ K-01 Serf collects debris. 02971_ Penetrated by Slug. 02973_ R-06 Scavenger collects Wheel. 02973_ Destroyed Targeting Computer. 02973_ H-55 Commando system corrupted by crushing effect. 02973_ H-55 Commando knocked back. 02974_ H-55 Commando system terminally corrupted. 02974_ K-01 Serf collects debris. 02975_ Acquired Wheel. 02977_ ALERT: Rogue bot located, Programmers report to Factory Zone 7R. 02977_ R-06 Scavenger collects Terrain Scanner. 02977_ K-01 Serf collects debris. 02979_ R-06 Scavenger collects Corrupted Gauss Rifle. 02979_ K-01 Serf collects debris. 02992_ WCQZ5R1DK%WMS9K4ENZIBRF=IO0A